Cogmind - Beta 13 @@@ ROGUE MODE // 2024.04.18 @ 16:03:13 Player: Dosh Result: Destroyed by C-40 Crusher with Compactor Performance ------------- Evolutions (3) 1500 Regions Visited (12) 2400 Robots Destroyed (221) 1105 Value Destroyed (6982) 6982 Prototype IDs (39) 780 Alien Tech Used (0) 0 Bonus (2385) 2385 TOTAL SCORE: 15152 Bonus ------- High Alert Combat Kills 685 Entered Garrisons 400 Used RIF Installer 1000 Aligned with FarCom 300 Cogmind --------- Core Integrity 0/700 Matter 15/300 Energy 100/100 System Corruption 22% Temperature Cool (0) Movement Core (2350) Ox46 Location -7/Waste Parts ------- > --- POWER (1) -------- (None) > --- PROPULSION (4) --- (None) > --- UTILITY (6) ------ Cargo Storage Unit Hacking Suite > --- WEAPON (2) ------- (None) > --- INVENTORY (30) --- Nuclear Core Micro Nuclear Core Micro Nuclear Core Light Treads Light Treads Medium Treads Heavy Siege Treads High-capacity Storage Unit Modified TNC Microactuators Improved Transmission Jammer System Shield Relay Coupler [NC] (25) Relay Coupler [NC] (28) Relay Coupler [Grunt] (22) Relay Coupler [Grunt] (26) Relay Coupler [Sentry] (21) Relay Coupler [Sentry] (19) Relay Coupler [Hunter] (12) System Restoration Module Assault Cannon Mini Assault Cannon Enhanced Gauss Cannon Hypervelocity Gauss Cannon Smartbomb Launcher Longsword +1 Peak State ------------ > --- POWER ------------ Reinforced Fission Core > --- PROPULSION ------- Light Treads Light Treads Advanced Treads Medium Treads > --- UTILITY ---------- Cooling System Cargo Storage Unit Improved Transmission Jammer Medium Armor Plating Hardened Medium Armor Plating > --- WEAPON ----------- Mini Assault Cannon Longsword +1 > --- INVENTORY -------- Deuterium Engine Nuclear Core Micro Nuclear Core Light Treads Light Treads Wheel High-capacity Storage Unit Modified TNC Microactuators Hacking Suite Relay Coupler [NC] Relay Coupler [NC] Relay Coupler [NC] Relay Coupler [Grunt] Relay Coupler [Grunt] Relay Coupler [Sentry] Relay Coupler [Sentry] Relay Coupler [Hunter] System Restoration Module Assault Cannon Enhanced Gauss Cannon Hypervelocity Gauss Cannon Smartbomb Launcher [Rating: 51] Favorites ----------- Power Ion Engine Engine Ion Engine Power Core Reinforced Fission Core Propulsion Advanced Treads Treads Advanced Treads Wheel Wheel Flight Unit Improved Flight Unit Utility Hardened Medium Armor Plating Device Improved Transmission Jammer Storage Cargo Storage Unit Processor Improved Targeting Computer Hackware Hacking Suite Protection Hardened Medium Armor Plating Weapon Minigun Energy Gun Lightning Gun Energy Cannon Advanced Beam Cannon Ballistic Gun Minigun Ballistic Cannon Enhanced Gauss Cannon Launcher Rocket Launcher Special Weapon Remote Datajack Slashing Weapon Longsword +1 Build | -11 -10 -10 -9 -9 -9 -8 -8 -8 -8 -8 -7 -7 ------- Run | Yrd Mat Min Mat Min Exi Min Mat Gar Mat Gar Fac Was Slots Evolved 6 | . . . 2 . . . 2 . . . 2 . Power . | . . . . . . . . . . . . . Propulsion 2 | . . . 1 . . . 1 . . . . . Utility 4 | . . . 1 . . . 1 . . . 2 . Weapon . | . . . . . . . . . . . . . Parts Attached 137 | 6 8 1 31 2 . 1 23 18 11 18 13 5 Power 9 | 1 1 . 1 . . . 4 1 . . 1 . Engine 5 | 1 1 . 1 . . . 2 . . . . . Core 4 | . . . . . . . 2 1 . . 1 . Reactor . | . . . . . . . . . . . . . Propulsion 41 | 2 2 . 13 . . . 7 3 3 7 4 . Treads 28 | 2 2 . 12 . . . 1 2 2 5 2 . Leg . | . . . . . . . . . . . . . Wheel 12 | . . . . . . . 6 1 1 2 2 . Hover . | . . . . . . . . . . . . . Flight 1 | . . . 1 . . . . . . . . . Utility 45 | 1 2 . 8 . . 1 8 6 7 6 5 1 Device 13 | . . . . . . . 1 3 3 4 2 . Storage 4 | 1 1 . 1 . . . . 1 . . . . Processor 1 | . . . . . . . 1 . . . . . Hackware 5 | . . . . . . . 2 . 1 . 1 1 Protection 22 | . 1 . 7 . . 1 4 2 3 2 2 . Artifact . | . . . . . . . . . . . . . Weapon 42 | 2 3 1 9 2 . . 4 8 1 5 3 4 Energy Gun 2 | . . . . 1 . . . 1 . . . . Energy Cannon 1 | . . . 1 . . . . . . . . . Ballistic Gun 15 | 2 2 . 5 . . . 2 2 1 1 . . Ballistic Cannon 14 | . 1 1 1 . . . 2 2 . 3 2 2 Launcher 7 | . . . 2 1 . . . 3 . 1 . . Special Weapon 2 | . . . . . . . . . . . . 2 Impact Weapon . | . . . . . . . . . . . . . Slashing Weapon 1 | . . . . . . . . . . . 1 . Piercing Weapon . | . . . . . . . . . . . . . Special Melee Weapon . | . . . . . . . . . . . . . Unidentified Prototypes 3 | . . . 2 . . . . . . . 1 . Parts Lost 35 | . 2 1 3 . . 2 3 2 6 8 4 4 Power 2 | . 1 . . . . . 1 . . . . . Propulsion 11 | . . . . . . . . 2 1 5 1 2 Utility 13 | . . . 1 . . 2 1 . 4 1 3 1 Weapon 9 | . 1 1 2 . . . 1 . 1 2 . 1 Highest Loss Streak 5 | . 1 1 1 . . 2 2 1 2 5 3 4 To Critical Strikes 1 | . . . . . . . . . 1 . . . Average Slot Usage (%) 93 | . 93 100 99 100 100 91 98 91 87 88 83 72 Engine 6 | . 13 14 11 11 11 11 2 5 . . . . Core 3 | . . . . . . . 6 3 9 9 6 5 Treads 24 | . 28 28 33 33 33 33 17 17 17 18 25 11 Wheel 7 | . . . . . . . 17 18 18 16 4 11 Device 3 | . . . . . . . . 6 3 8 12 5 Storage 10 | . 16 14 11 11 11 11 9 9 9 9 7 7 Processor 1 | . . . . . . . 8 . . . . . Hackware 2 | . . . . . . . 8 4 3 . 1 13 Protection 12 | . 5 14 21 22 22 13 8 9 9 8 8 5 Energy Gun 1 | . . . . 5 11 11 . 7 2 . . . Ballistic Gun 12 | . 26 22 15 12 11 11 14 8 15 8 . . Ballistic Cannon 5 | . 1 5 5 . . . 2 1 . 9 14 7 Naked Turns . | . . . . . . . . . . . . . Heaviest Build 194 | 13 34 33 65 64 63 63 69 180 180 188 194 190 Greatest Support 90 | 40 40 40 67 66 66 66 22 44 32 62 90 20 Greatest Overweight (x) 18 | . . . . . . . 3 8 8 18 9 9 Average Overweight (x) 2 | . . . . . . . 2 6 7 9 4 8 Largest Inventory Capacity 30 | 8 15 15 20 20 20 20 20 30 30 30 30 30 Average Capacity 22 | 7 11 15 16 20 20 20 20 27 30 30 30 30 Most Carried 30 | 2 13 12 20 20 20 20 20 30 28 28 28 29 Average Carried 19 | 1 7 11 15 19 20 19 19 22 26 23 24 28 Final Capacity 30 | 8 15 15 20 20 20 20 20 30 30 30 30 30 Final Carried 28 | 2 11 11 19 20 20 19 20 28 28 21 27 28 Class Distribution -------------------- 58% | Mutant 33% | Hauler-Mutant 7% | Bothacker-Mutant Dominant Class ---------------- Mutant | -10/Materials Mutant | -10/Mines Mutant | -9/Materials Mutant | -9/Mines Mutant | -9/Exiles Mutant | -8/Mines Mutant | -8/Materials Hauler-Mutant | -8/Garrison Hauler-Mutant | -8/Materials Hauler-Mutant | -8/Garrison Hauler-Mutant | -7/Factory Bothacker-Mutant | -7/Waste Resources | -11 -10 -10 -9 -9 -9 -8 -8 -8 -8 -8 -7 -7 ----------- Run | Yrd Mat Min Mat Min Exi Min Mat Gar Mat Gar Fac Was Matter Collected 5187 | 260 426 170 1146 36 . 64 770 451 559 639 657 9 Remotely . | . . . . . . . . . . . . . Salvage Created 7225 | . 689 162 1608 20 . 262 1235 480 1168 714 600 287 Parts 413 | . 51 13 114 . . 12 70 42 41 38 29 3 Haulers Intercepted 11 | . 2 . 4 . . . 4 . 1 . . . Recyclers Shooed 3 | . . . 1 1 . . 1 . . . . . Parts Field Recycled . | . . . . . . . . . . . . . Retrieved Matter . | . . . . . . . . . . . . . Parts Self-Destructed . | . . . . . . . . . . . . . Prevented . | . . . . . . . . . . . . . Kills | -11 -10 -10 -9 -9 -9 -8 -8 -8 -8 -8 -7 -7 ------- Run | Yrd Mat Min Mat Min Exi Min Mat Gar Mat Gar Fac Was Combat Hostiles Destroyed 175 | . 16 6 40 1 . 10 20 26 18 24 13 1 Melee 2 | . . . 1 . . . . . . . 1 . Guns 98 | . 13 5 20 1 . 6 16 11 18 8 . . Cannons 44 | . 3 1 15 . . . 3 1 . 8 12 1 AOE 31 | . . . 4 . . 4 1 14 . 8 . . Classes Destroyed 18 | . 7 . 4 1 . . 2 1 . 2 . 1 Worker 10 | . . . 4 . . . 2 . 3 . 1 . Builder 5 | . . . 1 . . . 2 . 2 . . . Tunneler 2 | . 1 . . . . . . . . . 1 . Hauler 11 | . 2 . 4 . . . 4 . 1 . . . Recycler 5 | . 1 . 1 . . . 1 . . . 2 . Operator 5 | . 2 . 1 . . . 1 . 1 . . . Watcher 9 | . 1 . 4 . . . 2 . . . 2 . Swarmer 54 | . 6 3 11 . . 7 3 16 . 8 . . Cutter 1 | . . . . . . . . 1 . . . . Grunt 78 | . 10 3 20 . . 2 7 7 13 10 6 . Brawler 2 | . . . . . . . 1 . 1 . . . Duelist 5 | . . . 1 . . 1 1 . 1 . 1 . Sentry 18 | . . . 8 . . . 5 2 2 1 . . Specialist 2 | . . . . . . . . . . 2 . . Hunter 7 | . . . . . . . 3 . 1 1 2 . Programmer 6 | . . . . . . . . . . 2 4 . Compactor 1 | . . . . . . . . . . . . 1 Assembled 1 | . . . . 1 . . . . . . . . Best Kill Streak 9 | . 5 3 7 1 . 4 5 8 6 9 4 1 Combat Bots Only 9 | . 5 3 4 1 . 4 3 8 4 9 4 1 Max Kills in Single Turn 4 | . 2 1 2 1 . 3 1 4 2 3 1 1 Gunslinging . | . . . . . . . . . . . . . Exploded 4 | . . . 2 . . 3 1 4 . 3 . . Melee 1 | . . . 1 . . . . . . . 1 . Uniques/NPCs Destroyed . | . . . . . . . . . . . . . Combat | -11 -10 -10 -9 -9 -9 -8 -8 -8 -8 -8 -7 -7 -------- Run | Yrd Mat Min Mat Min Exi Min Mat Gar Mat Gar Fac Was Hostile Shots Fired 781 | . 82 28 155 4 . 28 69 82 119 119 66 29 Missed 178 | . 20 9 44 2 . 4 12 13 30 30 14 . Damage Taken 8572 | . 626 200 1275 60 . 385 948 794 1266 987 751 1280 Core 1387 | . 82 33 72 28 . 51 123 110 109 60 44 675 Absorbed by Shields 638 | . . . . . . . . 5 223 367 43 . Regen/Repaired (Parts) 336 | . . . 85 . . . 36 . . . 215 . Core Remaining (%) 60 | 100 . 54 . . . 62 . . . 26 . . Volleys Fired 570 | . 78 18 124 5 . 16 73 50 75 59 56 16 Largest 2 | . 2 2 2 2 . 2 2 2 2 2 2 2 Hottest 122 | . 55 55 88 70 . 70 88 91 88 101 105 122 Shots Fired 1093 | . 156 36 248 10 . 30 142 90 150 112 100 19 Gun 753 | . 140 33 145 10 . 30 112 66 150 67 . . Cannon 311 | . 16 3 97 . . . 30 11 . 41 100 13 Launcher 23 | . . . 6 . . . . 13 . 4 . . Special 6 | . . . . . . . . . . . . 6 Kinetic 960 | . 156 36 222 5 . 16 136 50 118 108 100 13 Thermal 20 | . . . 20 . . . . . . . . . Explosive 23 | . . . 6 . . . . 13 . 4 . . Electromagnetic 84 | . . . . 5 . 14 6 27 32 . . . Robot Hit Streak 20 | . 8 12 20 6 . 13 9 11 12 9 6 16 Robot Miss Streak 7 | . 6 2 7 2 . 3 3 5 7 6 3 1 Penetration Max 1 | . . . . . . . . . 1 . 1 . Secondary Targets 6 | . 1 1 1 . . 2 . . 1 . . . Max Gunslinging Chain 1 | . 1 1 1 . . 1 . . 1 . . . Shots Hit Robots 688 | . 90 24 151 8 . 21 101 50 97 68 61 17 Core Hits 337 | . 36 10 74 3 . 15 54 40 43 35 25 2 Critical Kills 5 | . 1 . . . . 1 1 . 1 . . 1 Critical Parts Destroyed 4 | . 1 . . . . . . 1 2 . . . Critical Strikes 29 | . 3 . 1 . . 1 2 1 4 3 8 6 Destroy 14 | . 2 . . . . 1 1 1 3 . . 6 Blast 14 | . 1 . 1 . . . 1 . . 3 8 . Corrupt 1 | . . . . . . . . . 1 . . . Melee Attacks 1 | . . . . . . . . . . . 1 . Impact . | . . . . . . . . . . . . . Slashing 1 | . . . . . . . . . . . 1 . Piercing . | . . . . . . . . . . . . . Sneak Attacks . | . . . . . . . . . . . . . Combat Hostiles . | . . . . . . . . . . . . . Follow-up Attacks . | . . . . . . . . . . . . . Damage Inflicted 16324 | . 1162 326 3045 143 . 575 1994 2065 2410 2482 1888 234 Guns 8388 | . 988 275 1441 129 . 369 1383 691 2378 734 . . Cannons 4696 | . 157 36 1075 . . . 489 176 . 782 1754 227 Explosions 2883 | . . . 470 . . 206 43 1198 . 966 . . Melee 53 | . . . . . . . . . . . 53 . Ramming 304 | . 17 15 59 14 . . 79 . 32 . 81 7 Kinetic 11874 | . 1145 311 2309 51 . 169 1781 649 1962 1516 1754 227 Thermal 456 | . . . 207 . . 206 43 . . . . . Explosive 2634 | . . . 470 . . . . 1198 . 966 . . Electromagnetic 1003 | . . . . 78 . 200 91 218 416 . . . Impact . | . . . . . . . . . . . . . Slashing 53 | . . . . . . . . . . . 53 . Piercing . | . . . . . . . . . . . . . Highest Corruption 22 | . 1 1 . . . . . . . . . 22 Average Corruption 2 | . 1 1 . . . . . . . . . 13 Corruption Purged . | . . . . . . . . . . . . . Corruption Blocked . | . . . . . . . . . . . . . Effects 18 | . 3 5 . . . . . . . . . 10 Message Errors 4 | . 2 1 . . . . . . . . . 1 Matter Fused 5 | . . 1 . . . . . . . . . 4 Heat Flow Errors 2 | . 1 . . . . . . . . . . 1 Energy Discharges 1 | . . 1 . . . . . . . . . . Data Loss (minor) 2 | . . 1 . . . . . . . . . 1 Data Loss (major) 2 | . . 1 . . . . . . . . . 1 Misdirections 2 | . . . . . . . . . . . . 2 Overload Shots . | . . . . . . . . . . . . . Overflow Damage 271 | . . . 5 . . . 5 6 . 219 36 . Projectiles 41 | . . . 5 . . . 5 5 . . 26 . Explosions 220 | . . . . . . . . 1 . 219 . . Melee 10 | . . . . . . . . . . . 10 . Knockbacks 40 | . 7 . 6 . . . 4 . 1 3 19 . Impact 4 | . 2 . . . . . . . 1 . 1 . Kinetic 34 | . 4 . 6 . . . 4 . . 3 17 . Secondary 2 | . 1 . . . . . . . . . 1 . Self-Inflicted Damage 156 | . . . . . . 76 38 18 13 . 8 3 Shots 5 | . . . . . . 3 . 2 . . . . Rammed 38 | . 3 4 10 2 . . 6 . 4 . 5 4 Targets Rammed 46 | . 4 4 15 2 . . 6 . 4 . 7 4 Kicked . | . . . . . . . . . . . . . Crushed 8 | . 1 . 5 . . . . . . . 2 . Highest Temperature 441 | . 283 15 342 155 . 206 345 315 382 363 441 144 Average Temperature 86 | . 52 6 60 79 . 85 55 94 131 95 116 76 Received Heat Transfer 2586 | . 267 63 516 . . 135 270 243 622 242 228 . Effects 12 | . . . . . . . 1 1 2 4 4 . Shutdowns 3 | . . . . . . . 1 . 1 . 1 . Energy Bleed 3 | . . . . . . . . 1 . 1 1 . Interference 5 | . . . . . . . . . . 3 2 . Damage (minor) 1 | . . . . . . . . . 1 . . . Siege Activations . | . . . . . . . . . . . . . Robots Corrupted . | . . . . . . . . . . . . . Combat Hostiles . | . . . . . . . . . . . . . Parts Fried 5 | . . . . . . . . 2 2 . 1 . Impact Corruptions 1 | . . . . . . . . . . . 1 . Robots Melted . | . . . . . . . . . . . . . Combat Hostiles . | . . . . . . . . . . . . . Parts Melted . | . . . . . . . . . . . . . Heat Transferred 620 | . . . 370 . . 250 . . . . . . Parts Sabotaged . | . . . . . . . . . . . . . Parts Stolen . | . . . . . . . . . . . . . Parts Stripped . | . . . . . . . . . . . . . Power Chain Reactions 4 | . . . . . . 3 1 . . . . . Alert | -11 -10 -10 -9 -9 -9 -8 -8 -8 -8 -8 -7 -7 ------- Run | Yrd Mat Min Mat Min Exi Min Mat Gar Mat Gar Fac Was Peak Influence 935 | . 291 158 872 339 . 171 235 935 744 838 489 112 Initial 455 | . . 43 . 339 . . 66 22 455 260 439 112 Average 299 | . 159 86 348 183 . 50 80 535 470 638 343 101 Maximum Alert Level 3 | . 1 . 3 1 . . 1 3 3 3 2 . Low Security (%) 42 | 100 64 100 42 61 . 100 90 9 . . 1 100 Level 1 29 | . 35 . 12 38 . . 9 24 36 16 82 . Level 2 19 | . . . 30 . . . . 42 59 38 16 . Level 3 8 | . . . 14 . . . . 22 3 44 . . Level 4 . | . . . . . . . . . . . . . Level 5 . | . . . . . . . . . . . . . High Security . | . . . . . . . . . . . . . Max Security . | . . . . . . . . . . . . . Squads Dispatched 31 | . 4 1 5 . . . 10 . 4 . 7 . Investigation 13 | . 2 1 2 . . . 6 . 1 . 1 . Extermination 4 | . . . . . . . . . . . 4 . Reinforcement 9 | . 2 . 2 . . . 1 . 2 . 2 . Assault 1 | . . . 1 . . . . . . . . . Garrison 4 | . . . . . . . 3 . 1 . . . Intercept . | . . . . . . . . . . . . . Searches Triggered . | . . . . . . . . . . . . . Construction Impeded 1 | . . . . . . . . . . . 1 . Haulers Reinforced . | . . . . . . . . . . . . . Active Scanning Responses . | . . . . . . . . . . . . . Cargo Convoy Interrupts . | . . . . . . . . . . . . . Stealth | -11 -10 -10 -9 -9 -9 -8 -8 -8 -8 -8 -7 -7 --------- Run | Yrd Mat Min Mat Min Exi Min Mat Gar Mat Gar Fac Was Distress Signals 13 | . 1 . 6 . . . 1 . 5 . . . Communications Jammed 24 | . . . . . . . . . . . 24 . Distress Signals 24 | . . . . . . . . . . . 24 . Times Spotted 261 | . 34 6 65 1 . 10 30 29 30 20 30 6 Peak Tracking Total 7 | . 6 3 5 1 . 4 3 5 5 7 3 3 Tactical Retreats 15 | . 1 . 7 . . . 1 2 2 1 1 . Traps | -11 -10 -10 -9 -9 -9 -8 -8 -8 -8 -8 -7 -7 ------- Run | Yrd Mat Min Mat Min Exi Min Mat Gar Mat Gar Fac Was Traps Triggered 18 | . 1 . . . . . 3 7 1 5 1 . Indirectly . | . . . . . . . . . . . . . Trap Hack Attempts . | . . . . . . . . . . . . . Triggered . | . . . . . . . . . . . . . Disarmed . | . . . . . . . . . . . . . Reprogrammed . | . . . . . . . . . . . . . Reused . | . . . . . . . . . . . . . Traps Extracted . | . . . . . . . . . . . . . Installed . | . . . . . . . . . . . . . Triggered . | . . . . . . . . . . . . . Machines | -11 -10 -10 -9 -9 -9 -8 -8 -8 -8 -8 -7 -7 ---------- Run | Yrd Mat Min Mat Min Exi Min Mat Gar Mat Gar Fac Was Machines Disabled 18 | . 1 . 5 . . . 1 3 3 2 3 . Max in Single Turn 2 | . 1 . 2 . . . 1 1 1 1 2 . Garrison Relay 4 | . . . . . . . . 4 . . . . Machines Repaired . | . . . . . . . . . . . . . Machines Dismantled . | . . . . . . . . . . . . . Machines Sabotaged . | . . . . . . . . . . . . . Overloaded Fab Kills . | . . . . . . . . . . . . . Hacking | -11 -10 -10 -9 -9 -9 -8 -8 -8 -8 -8 -7 -7 --------- Run | Yrd Mat Min Mat Min Exi Min Mat Gar Mat Gar Fac Was Machines Accessed 39 | . 8 1 11 . 2 . 8 1 4 1 3 . Terminals 27 | . 6 1 9 . . . 6 1 2 1 1 . Fabricators 1 | . . . . . . . . . . . 1 . Repair Stations 3 | . . . 1 . . . 1 . . . 1 . Recycling Units 3 | . 2 . 1 . . . . . . . . . Scanalyzers 1 | . . . . . . . . . 1 . . . Garrison Access 2 | . . . . . . . 1 . 1 . . . Total Hacks 99 | . 20 2 27 . 2 . 23 2 13 2 8 . Successful 48 | . 8 . 16 . 2 . 10 1 6 . 5 . Failed 50 | . 11 2 11 . . . 13 1 7 2 3 . Catastrophic 7 | . 2 1 2 . . . 1 . . 1 . . Database Lockouts 1 | . 1 . . . . . . . . . . . Manual 43 | . 7 2 15 . 1 . 7 . 8 . 3 . Terminals 75 | . 16 2 23 . . . 19 2 8 2 3 . Fabricators 3 | . . . . . . . . . . . 3 . Repair Stations 7 | . . . 3 . . . 2 . . . 2 . Recycling Units 5 | . 4 . 1 . . . . . . . . . Scanalyzers 4 | . . . . . . . . . 4 . . . Garrison Access 3 | . . . . . . . 2 . 1 . . . Terminal Hacks 29 | . 6 . 11 . 2 . 6 1 2 . 1 . Record 1 | . . . . . 1 . . . . . . . Robot Analysis 2 | . 1 . 1 . . . . . . . . . Prototype ID Bank 11 | . 2 . 7 . . . 1 . . . 1 . Emergency Access Points 1 | . . . . . . . . 1 . . . . Alert Level 3 | . 1 . 1 . . . 1 . . . . . Unreport Threat 5 | . . . 1 . . . 2 . 2 . . . Dispatch Records 1 | . 1 . . . . . . . . . . . Recall Investigation 1 | . 1 . . . . . . . . . . . Recall Reinforcements 1 | . . . . . . . 1 . . . . . Hauler Manifests 1 | . . . 1 . . . . . . . . . Registered Prototypes 1 | . . . . . . . 1 . . . . . Derelict Proto ID Bank 1 | . . . . . 1 . . . . . . . Fabricator Hacks 2 | . . . . . . . . . . . 2 . Load Schematic 1 | . . . . . . . . . . . 1 . Build 1 | . . . . . . . . . . . 1 . Repair Station Hacks 6 | . . . 2 . . . 2 . . . 2 . Scan Component 3 | . . . 1 . . . 1 . . . 1 . Repair 3 | . . . 1 . . . 1 . . . 1 . Recycling Unit Hacks . | . . . . . . . . . . . . . Scanalyzer 3 | . . . . . . . . . 3 . . . Insert Component 1 | . . . . . . . . . 1 . . . Analyze 2 | . . . . . . . . . 2 . . . Garrison Access Hacks 2 | . . . . . . . 1 . 1 . . . Unlock Access 2 | . . . . . . . 1 . 1 . . . Unauthorized Hacks 6 | . 2 . 3 . . . 1 . . . . . Terminals 3 | . . . 2 . . . 1 . . . . . Botnet 2 | . . . 1 . . . 1 . . . . . Operators 1 | . . . 1 . . . . . . . . . Fabricators . | . . . . . . . . . . . . . Repair Stations . | . . . . . . . . . . . . . Recycling Units 3 | . 2 . 1 . . . . . . . . . Tunnel 3 | . 2 . 1 . . . . . . . . . Scanalyzers . | . . . . . . . . . . . . . Garrison Access . | . . . . . . . . . . . . . Data Cores Recovered . | . . . . . . . . . . . . . Used . | . . . . . . . . . . . . . Hacking Detections 33 | . 6 1 10 . . . 8 1 3 1 3 . Full Trace Events 9 | . 2 1 1 . . . 3 . . 1 1 . Feedback Events 1 | . 1 . . . . . . . . . . . Corruption 1 | . 1 . . . . . . . . . . . Feedback Blocked . | . . . . . . . . . . . . . Robot Schematics Acquired . | . . . . . . . . . . . . . Robots Built . | . . . . . . . . . . . . . Authchips . | . . . . . . . . . . . . . Time . | . . . . . . . . . . . . . Total Robot Build Rating . | . . . . . . . . . . . . . Part Schematics Acquired 1 | . . . . . . . . . 1 . . . Parts Built 2 | . . . . . . . . . . . 2 . Authchips . | . . . . . . . . . . . . . Time 53 | . . . . . . . . . . . 53 . Total Part Build Rating 12 | . . . . . . . . . . . 12 . Parts Repaired 3 | . . . 1 . . . 1 . . . 1 . Time 114 | . . . 26 . . . 32 . . . 56 . Parts Recycled . | . . . . . . . . . . . . . Recycled Matter . | . . . . . . . . . . . . . Retrieved Matter . | . . . . . . . . . . . . . Retrieved Components . | . . . . . . . . . . . . . Parts Scanalyzed 1 | . . . . . . . . . 1 . . . Part Schematics Acquired 1 | . . . . . . . . . 1 . . . Parts Damaged . | . . . . . . . . . . . . . Bothacking | -11 -10 -10 -9 -9 -9 -8 -8 -8 -8 -8 -7 -7 ------------ Run | Yrd Mat Min Mat Min Exi Min Mat Gar Mat Gar Fac Was Used RIF Installer 2 | . . . . . . . . 1 . 1 . . Program Shield 1 | . . . . . . . . . . 1 . . Robots Hacked 5 | . . . . . . . . . . . . 5 Non-combat . | . . . . . . . . . . . . . Combat 5 | . . . . . . . . . . . . 5 Robot Hacks Applied 5 | . . . . . . . . . . . . 5 ignore_targets 5 | . . . . . . . . . . . . 5 Relay Couplers Released 20 | . . . . . . . . 16 . 4 . . Machine Destruction 16 | . . . . . . . . 16 . . . . Programmers 4 | . . . . . . . . . . 4 . . Attached 1 | . . . . . . . . . . . . 1 Fabnet Peak Effective % . | . . . . . . . . . . . . . Robots Rewired . | . . . . . . . . . . . . . Allies Hacked . | . . . . . . . . . . . . . Hacks Repelled . | . . . . . . . . . . . . . Allies | -11 -10 -10 -9 -9 -9 -8 -8 -8 -8 -8 -7 -7 -------- Run | Yrd Mat Min Mat Min Exi Min Mat Gar Mat Gar Fac Was Total Allies 1 | . . . . 1 . . . . . . . . Largest Group 1 | . . . . 1 . . . . . . . . Highest-Rated Group 31 | . . . . 31 . . . . . . . . Highest-Rated Ally 31 | . . . . 31 . . . . . . . . Total Orders . | . . . . . . . . . . . . . Ally Attacks . | . . . . . . . . . . . . . Total Damage . | . . . . . . . . . . . . . Kills . | . . . . . . . . . . . . . Allies Corrupted . | . . . . . . . . . . . . . Allies Melted 1 | . . . . 1 . . . . . . . . Intel | -11 -10 -10 -9 -9 -9 -8 -8 -8 -8 -8 -7 -7 ------- Run | Yrd Mat Min Mat Min Exi Min Mat Gar Mat Gar Fac Was Robot Analysis Total 2 | . 1 . 1 . . . . . . . . . Derelict Logs Recovered 4 | . . 3 . 1 . . . . . . . . Drone Launches . | . . . . . . . . . . . . . Drone Recoveries . | . . . . . . . . . . . . . Exploration | -11 -10 -10 -9 -9 -9 -8 -8 -8 -8 -8 -7 -7 ------------- Run | Yrd Mat Min Mat Min Exi Min Mat Gar Mat Gar Fac Was Turns Passed 15585 | 86 1445 860 2658 1042 307 597 2008 1538 1136 1153 2458 297 Spaces Moved 7027 | 49 714 499 1334 495 210 379 990 720 371 403 777 86 Core 2 | 2 . . . . . . . . . . . . Treads 4217 | 47 714 499 1334 495 210 379 52 4 . 5 478 . Legs . | . . . . . . . . . . . . . Wheels 2808 | . . . . . . . 938 716 371 398 299 86 Hover . | . . . . . . . . . . . . . Flight . | . . . . . . . . . . . . . Fastest Speed 50 | 50 160 160 145 145 145 145 115 115 158 200 200 200 Average Speed 173 | 155 160 160 157 145 145 145 127 178 204 226 272 206 Slowest Speed 480 | 160 160 160 160 145 145 145 305 385 205 480 320 215 Overloaded Moves . | . . . . . . . . . . . . . Propulsion Burnouts . | . . . . . . . . . . . . . Robots Hopped . | . . . . . . . . . . . . . Cave-ins Triggered . | . . . . . . . . . . . . . Exploration Rate (%) 62 | 5 98 86 94 79 60 95 67 77 32 54 19 52 Regions Visited 12 Branch Regions 4 Pre-discovered Areas 4 | . 2 . 1 . 1 . . . . . . . Known Exits Taken 3 | . . . 1 . . . 1 . 1 . . . Unknown Exits Taken 6 | 1 1 1 . 1 1 1 . . . . . . Scrap Searched 3 | . . 1 . 1 . 1 . . . . . . Spaces Dug 3 | . . . . . . . . 3 . . . . Terrain Destroyed 201 | . . . 37 . . 20 9 33 35 37 30 . Melee . | . . . . . . . . . . . . . Projectile 79 | . . . . . . . 7 2 35 5 30 . AOE 122 | . . . 37 . . 20 2 31 . 32 . . Terrain Rammed . | . . . . . . . . . . . . . Walls Destroyed . | . . . . . . . . . . . . . Machines Disabled . | . . . . . . . . . . . . . Actions | -11 -10 -10 -9 -9 -9 -8 -8 -8 -8 -8 -7 -7 --------- Run | Yrd Mat Min Mat Min Exi Min Mat Gar Mat Gar Fac Was Total 9251 | 56 862 522 1656 808 213 400 1622 882 586 532 1000 112 Wait 1280 | . 46 . 115 304 . 5 501 35 121 17 136 . Move 7018 | 48 713 498 1333 494 209 378 990 719 371 402 777 86 Hop . | . . . . . . . . . . . . . Pick Up 66 | 2 9 1 13 1 2 . 10 14 4 1 8 1 Fast Attach 30 | 6 2 . 5 . . . 9 1 2 1 4 . Attach 38 | . 2 1 5 . . 1 4 5 5 10 4 1 Detach 13 | . 1 . 2 . . . 3 3 . 3 1 . Swap 70 | . 4 . 22 2 . . 10 12 4 7 5 4 Drop 51 | . 3 . 22 . 2 . 16 7 . . 1 . Fire 570 | . 78 18 124 5 . 16 73 50 75 59 56 16 Melee 1 | . . . . . . . . . . . 1 . Ram 13 | . . . . . . . 6 . 2 . 1 4 Kick . | . . . . . . . . . . . . . Crush 33 | . 4 4 15 2 . . . . 2 . 6 . Escape Stasis 68 | . . . . . . . . 36 . 32 . . Rewire . | . . . . . . . . . . . . . Trap . | . . . . . . . . . . . . . Miscellaneous . | . . . . . . . . . . . . . Route ------- -11/Scrapyard -10/Materials (discovered 5 exits: *Mat x3 / *Min x2) -10/Mines (discovered 2 exits: *Mat x2) -9/Materials (discovered 5 exits: *Mat x3 / *Min x2) -9/Mines (discovered 3 exits: *Mat x2 / *Exi) -9/Exiles -8/Mines (discovered 2 exits: *Mat x2) -8/Materials (discovered 2 exits: *Fac / Gar) -8/Garrison (discovered 3 exits: *Mat x3) -8/Materials -8/Garrison (discovered 3 exits: *Fac x3) -7/Factory (discovered 2 exits: [*Fac] / [*Low]) -7/Waste History --------- Turn | Location | Event 34 | -11/Scrapyard | Discovered new exit (range 15) 87 | -11/Scrapyard | Entered Materials 237 | -10/Materials | Discovered new exit (range 14) 316 | -10/Materials | Build established: Mutant 426 | -10/Materials | Central database locked down 563 | -10/Materials | Discovered new exit (range 11) 667 | -10/Materials | Discovered new exit (range 8) 881 | -10/Materials | Discovered new exit (range 6) 1275 | -10/Materials | Discovered new exit (range 11) 1532 | -10/Materials | Entered Mines 1593 | -10/Mines | Discovered new exit (range 5) 1624 | -10/Mines | Learned 4 Materials zone layouts 1751 | -10/Mines | Received a Rocket Launcher from a helpful Derelict 1765 | -10/Mines | Learned Materials trap positions 2115 | -10/Mines | Discovered new exit (range 12) 2123 | -10/Mines | Learned Materials terminal intel 2192 | -10/Mines | Found a hidden stash of uninstalled traps 2392 | -10/Mines | Entered Materials 2392 | -9/Materials | Evolved 2 slots: Propulsion x1, Utility x1 2393 | -9/Materials | Identified exit to Mines 2394 | -9/Materials | Loaded intel: 7 trap records 2395 | -9/Materials | Loaded intel: 12 terminal locations 2861 | -9/Materials | Repaired Lgt. Armor Plating 3135 | -9/Materials | Discovered new exit (range 16) 3998 | -9/Materials | Discovered exit to Mines (range 9) 4376 | -9/Materials | Discovered new exit (range 14) 4792 | -9/Materials | First assault squad dispatched 4802 | -9/Materials | Discovered new exit (range 4) 5050 | -9/Materials | Entered Mines 5053 | -9/Mines | Received a Mining Laser from a helpful Derelict 5120 | -9/Mines | Met a Derelict bent on vengeance 5189 | -9/Mines | Assembled infested the area 5194 | -9/Mines | Assisted by a Guerilla fighting off Assembled 5588 | -9/Mines | Discovered new exit (range 8) 5628 | -9/Mines | Learned Materials terminal intel 5720 | -9/Mines | Discovered new exit (range 11) 5842 | -9/Mines | Deemed a non-threat by the Exiles lab entrance 5842 | -9/Mines | Discovered new exit (range 5) 6092 | -9/Mines | Entered Exiles 6129 | -9/Exiles | Met 8R-AWN 6152 | -9/Exiles | Met EX-HEX 6191 | -9/Exiles | Met EX-BIN 6211 | -9/Exiles | Aligned with FarCom system 6213 | -9/Exiles | Given EX-Vault access code 6246 | -9/Exiles | Opened EX-Vault 6255 | -9/Exiles | Found Longsword +1 6258 | -9/Exiles | Found Modified TNC 6290 | -9/Exiles | Warned to stay clear of 0b10 Research branches 6332 | -9/Exiles | Met EX-DEC 6339 | -9/Exiles | Learned location of Zion (-6) 6381 | -9/Exiles | Discovered new exit (range 14) 6399 | -9/Exiles | Stole two prototypes: Modified TNC, Longsword +1 6399 | -9/Exiles | Entered Mines 6443 | -8/Mines | Discovered new exit (range 7) 6830 | -8/Mines | Discovered new exit (range 7) 6996 | -8/Mines | Entered Materials 6996 | -8/Materials | Evolved 2 slots: Propulsion x1, Utility x1 6997 | -8/Materials | Loaded intel: 11 terminal locations 8134 | -8/Materials | Garrison activated, responded to threat 8581 | -8/Materials | Discovered new exit (range 7) 8834 | -8/Materials | Repaired Arm. Wheel 9004 | -8/Materials | Identified exit to Garrison 9004 | -8/Materials | Entered Garrison 9056 | -8/Garrison | Triggered checkpoint 9090 | -8/Garrison | Triggered checkpoint 9146 | -8/Garrison | Triggered checkpoint 9161 | -8/Garrison | Discovered new exit (range 3) 9172 | -8/Garrison | Discovered new exit (range 14) 9206 | -8/Garrison | Installed Relay Interface Framework 9308 | -8/Garrison | Garrison Relay disabled 9476 | -8/Garrison | Triggered checkpoint 9538 | -8/Garrison | Triggered checkpoint 9567 | -8/Garrison | Destroyed 8 combat bots 9608 | -8/Garrison | Build established: Hauler-Mutant 10120 | -8/Garrison | Discovered new exit (range 11) 10190 | -8/Garrison | Garrison Relay disabled 10193 | -8/Garrison | Garrison Relay disabled 10218 | -8/Garrison | Garrison Relay disabled 10350 | -8/Garrison | Triggered checkpoint 10542 | -8/Garrison | Entered Materials 10846 | -8/Materials | Core integrity fell below 50% 11582 | -8/Materials | Garrison activated, responded to threat 11678 | -8/Materials | Identified exit to Garrison 11678 | -8/Materials | Entered Garrison 11732 | -8/Garrison | Triggered checkpoint 11877 | -8/Garrison | Triggered checkpoint 11940 | -8/Garrison | Lost 5 parts (3n1u1w) 11954 | -8/Garrison | Triggered checkpoint 11981 | -8/Garrison | Destroyed 9 combat bots 12107 | -8/Garrison | Expanded RIF knowledge: Program Shield 12135 | -8/Garrison | Discovered new exit (range 10) 12210 | -8/Garrison | Triggered checkpoint 12392 | -8/Garrison | Discovered new exit (range 7) 12521 | -8/Garrison | Discovered new exit (range 15) 12684 | -8/Garrison | Triggered checkpoint 12831 | -8/Garrison | Entered Factory 12831 | -7/Factory | Evolved 2 slots: Utility x2 12833 | -7/Factory | FarCom data flow suspended 13409 | -7/Factory | Discovered new exit (range 15) 14043 | -7/Factory | Discovered new exit (range 11) 14546 | -7/Factory | Fabricated Hyp. Gauss Cannon (x2) 14617 | -7/Factory | Lost 3 parts (1n2u) 14714 | -7/Factory | Build established: Bothacker-Mutant 14882 | -7/Factory | Repaired Rnf. Fission Core 15289 | -7/Factory | Sucked down chute 15289 | -7/Factory | Entered Waste 15304 | -7/Waste | EMP discharged 15376 | -7/Waste | Spotted C-40 Crusher 15376 | -7/Waste | Spotted C-40 Crusher 15385 | -7/Waste | Spotted C-40 Crusher 15404 | -7/Waste | EMP discharged 15404 | -7/Waste | System corruption reached 10% 15404 | -7/Waste | Spotted C-40 Crusher 15423 | -7/Waste | Spotted C-40 Crusher 15446 | -7/Waste | Destroyed C-40 Crusher 15464 | -7/Waste | Spotted C-40 Crusher 15502 | -7/Waste | Crushed by Compactor (1 part destroyed, 1 dropped) 15504 | -7/Waste | EMP discharged 15505 | -7/Waste | Crushed by Compactor (1 part destroyed, 2 dropped) 15508 | -7/Waste | Crushed by Compactor (1 part destroyed, 2 dropped) 15535 | -7/Waste | Crushed by Compactor (0 parts destroyed, 1 dropped) 15539 | -7/Waste | Lost 4 parts (2n1u1w) 15541 | -7/Waste | Crushed by Compactor (0 parts destroyed, 1 dropped) 15542 | -7/Waste | Core integrity fell below 50% 15569 | -7/Waste | Core integrity fell below 20% 15586 | -7/Waste | Destroyed by C-40 Crusher with Compactor Last Messages --------------- 15502_ Acquired 1 matter. 15504_ System corrupted (+10). 15505_ Lgt. Treads crushed. 15505_ Cooling System crushed. 15505_ Lgt. Treads crushed. 15505_ Wheel destroyed. 15506_ Slammed into C-40 Crusher. 15506_ Wheel broken. 15506_ Destabilizing: Short circuit. 15508_ Lgt. Treads crushed. 15508_ Hyp. Gauss Cannon crushed. 15508_ Broken Wheel crushed. 15508_ Hyp. Gauss Cannon crushed. 15522_ #&IZFGV>>A8Z/=BD1M,QV%4S%SAILBQ 15534_ Slammed into C-40 Crusher. 15535_ Remote Datajack crushed. 15541_ Relay Coupler [NC] crushed. 15558_ Slammed into C-40 Crusher. 15577_ System corrupted: Heat flow error (+178). 15582_ Slammed into C-40 Crusher. Map ----- +----------------------------------------------------+ | ?????????????????????????????????? ?????????? | | ????????????????????????????????? #???????? | | ????????????????????????????????? #???????? | | ????????????????????????????????? #???????? | | ????????????????????????????????? #???????? | | ?????????????????????????????????? #???????? | | ?????????????????????????????????? ????????? | | ??????????????????????######?????? ?????????? | | ??????????????????????# #??????# #?????????? | | ??????????????????????# #??????# ! #?????????? | | ??????????????????????# #??????# #?????????? | | ??????????????????????# #??????# #?????????? | | ????????????????????### ######## #?????????? | | ????????????????????# #?????????? | | ????????????????????# #?????????? | | ????????????????????# #?????????? | | ????????????????????# #?????????? | | ????????????????????### ######## #?????????? | | ??????????????????????# #??????# #?????????? | | ??????????????????????# #??????# #?????????? | | ??????????????????????# #??????# #?????????? | | ????????????????????### ######## #?????????? | | ????????????????????# #?????????? | | ????????????????????# #?????????? | | ????????????????????# !CC #?????????? | | ????????????????????# =@CC #?????????? | | ????????????????????### ######## #?????????? | | ????????############??# #??????# #?????????? | | ????????# #??# #??????# #?????????? | | ????????# #??# #??????# #?????????? | | ????????# #### ######## ######## | | ????????# | | ????????# | | ????????# | | ????????# | | ????????# #### ######## ######## | | ????????# #??# #??????# #????????? | | ????????# #??# #??????# #?????????? | | ????????############??# #??????# #?????????? | | ??????????????????????# #??????# #?????????? | | ?????????????????????? ??????######?????????? | | ?????????????????????? ????????????????????? | | ????????????????????? ! #???????????????????? | | ????????????????????? #???????????????????? | | ????????????????????? #???????????????????? | | ????????????????????# #???????????????????? | | ????????????????????# #???????????????????? | | ????????????????????? ????????????????????? | | ??????????????????????######?????????????????????? | | ?????????????????????????????????????????????????? | +----------------------------------------------------+ Best States ------------- Heat Dissipation 56 Energy Generation 19 Energy Capacity 310 Matter Stores 300 Matter Capacity 300 Sight Range 16 Terrain Scan Density 10 Jamming Range 14 Armor Coverage 450 Evasion (%) 40 Targeting Accuracy 6 Recoil Reduction 4 Offensive Hacking 10 Defensive Hacking 10 Relay Coupler Types 1 Relay Coupler Value 24 Item Schematics ----------------- Hyp. Gauss Cannon | -8/Materials | Scanalyzed Robot Schematics ------------------ None Fabricated ------------ Hyp. Gauss Cannon | x2 | -7/Factory Alien Tech Used ----------------- None Achievements -------------- None Challenges ------------ None Game ------ Seed EfficiencyMiniLeg Manual? 0 Play Time 01:00:02 Cumulative 347.2 hours Start 2024.04.18 @ 15:03:08 End 2024.04.18 @ 16:03:13 Sessions 1 Manual Loads 0 Difficulty Rogue Special Mode None Game No. 226 Rogue 226 Adventurer 0 Explorer 0 Win Type - Total 20 Types 13/2/2/1/1/0/0/1/0 Lore% 84 Gallery% 85 Achievement% 77 Wizard Run 0 Options --------- Layout 0 ASCII 0 Keyboard 1 Movement Numpad Keybinds 0 Fullscreen 2 Font 18/SmallcapsGlow Map View 76x50 Zoom Use 0% Tactical HUD 1 Map Filters NONE Filters NONE Steam 1 RUN: 49863071-afcb-480d-97e5-25dca97daabc